[Event "*** Titled Tuesday Blitz"]
[Site "Chess.com"]
[Date "2021.02.09"]
[Round "11"]
[White "skoularikii"]
[Black "PotapovaM"]
[Result "0-1"]
[WhiteElo "2500"]
[BlackElo "2635"]
[TimeControl "180+1"]
[EndTime "12:06:06 PST"]
[Termination "PotapovaM won by resignation"]

1. e4 {[%clk 0:02:59.3]} 1... c5 {[%clk 0:02:58.3]} 2. Nf3 {[%clk 0:02:55.1]}
2... d6 {[%clk 0:02:58.8]} 3. Bb5+ {[%clk 0:02:53.5]} 3... Nd7 {[%clk
0:02:58.6]} 4. c3 {[%clk 0:02:52.7]} 4... a6 {[%clk 0:02:58]} 5. Ba4 {[%clk
0:02:52.7]} 5... b5 {[%clk 0:02:58.2]} 6. Bc2 {[%clk 0:02:52.7]} 6... Ngf6
{[%clk 0:02:58.9]} 7. O-O {[%clk 0:02:49.2]} 7... c4 {[%clk 0:02:57.9]} 8. b3
{[%clk 0:02:48.2]} 8... cxb3 {[%clk 0:02:51.1]} 9. axb3 {[%clk 0:02:48.1]} 9...
Bb7 {[%clk 0:02:51.8]} 10. Re1 {[%clk 0:02:47.9]} 10... e6 {[%clk 0:02:41.3]}
11. d4 {[%clk 0:02:46.1]} 11... Be7 {[%clk 0:02:42]} 12. Nbd2 {[%clk 0:02:39]}
12... O-O {[%clk 0:02:42.2]} 13. Bb2 {[%clk 0:02:30.1]} 13... Re8 {[%clk
0:02:40.9]} 14. Qe2 {[%clk 0:02:26.2]} 14... e5 {[%clk 0:02:38.1]} 15. d5 {[%clk
0:02:19.2]} 15... Qc8 {[%clk 0:02:20.7]} 16. Bd3 {[%clk 0:02:11.5]} 16... Bd8
{[%clk 0:02:20.5]} 17. b4 {[%clk 0:02:06.8]} 17... Nh5 {[%clk 0:02:14.9]} 18. g3
{[%clk 0:02:03.3]} 18... Nhf6 {[%clk 0:02:14.9]} 19. c4 {[%clk 0:01:58.9]} 19...
bxc4 {[%clk 0:02:02.5]} 20. Nxc4 {[%clk 0:01:57.8]} 20... Bc7 {[%clk 0:02:01]}
21. Rec1 {[%clk 0:01:57.1]} 21... Qd8 {[%clk 0:01:53.7]} 22. Na5 {[%clk
0:01:54]} 22... Bxa5 {[%clk 0:01:51.9]} 23. Rxa5 {[%clk 0:01:54.6]} 23... Qb6
{[%clk 0:01:48.1]} 24. Ba3 {[%clk 0:01:43.7]} 24... Ng4 {[%clk 0:01:28.4]} 25.
Nd2 {[%clk 0:01:42]} 25... f5 {[%clk 0:01:22.2]} 26. exf5 {[%clk 0:01:37.6]}
26... e4 {[%clk 0:01:13.5]} 27. Bxe4 {[%clk 0:01:12.2]} 27... Nde5 {[%clk
0:01:03.7]} 28. h3 {[%clk 0:01:03.9]} 28... Nf6 {[%clk 0:01:01.6]} 29. Bg2
{[%clk 0:00:57.6]} 29... Nc6 {[%clk 0:00:49.5]} 30. dxc6 {[%clk 0:00:52]} 30...
Rxe2 {[%clk 0:00:45.3]} 31. cxb7 {[%clk 0:00:51.9]} 31... Qxf2+ {[%clk
0:00:45.3]} 0-1

[Event "*** Titled Tuesday Blitz"]
[Site "Chess.com"]
[Date "2021.02.09"]
[Round "11"]
[White "KetiGrant"]
[Black "NikolaMa2000"]
[Result "1-0"]
[WhiteElo "2343"]
[BlackElo "1898"]
[TimeControl "180+1"]
[EndTime "12:06:07 PST"]
[Termination "KetiGrant won by checkmate"]

1. e4 {[%clk 0:03:00.9]} 1... e6 {[%clk 0:02:59.8]} 2. d4 {[%clk 0:02:58.8]}
2... d5 {[%clk 0:03:00.2]} 3. Nc3 {[%clk 0:02:56.4]} 3... Nf6 {[%clk 0:02:59.5]}
4. e5 {[%clk 0:02:55.9]} 4... Nfd7 {[%clk 0:02:59.3]} 5. f4 {[%clk 0:02:56.5]}
5... c5 {[%clk 0:02:59.9]} 6. Nf3 {[%clk 0:02:57]} 6... Nc6 {[%clk 0:03:00.4]}
7. Be3 {[%clk 0:02:56.8]} 7... a6 {[%clk 0:03:00.6]} 8. Qd2 {[%clk 0:02:56.2]}
8... b5 {[%clk 0:02:59.8]} 9. Be2 {[%clk 0:02:54.6]} 9... Qb6 {[%clk 0:02:57.2]}
10. Nd1 {[%clk 0:02:46.3]} 10... cxd4 {[%clk 0:02:56.6]} 11. Nxd4 {[%clk
0:02:45.4]} 11... Nxd4 {[%clk 0:02:54.8]} 12. Bxd4 {[%clk 0:02:44.8]} 12... Bc5
{[%clk 0:02:55.3]} 13. c3 {[%clk 0:02:43.8]} 13... O-O {[%clk 0:02:45.3]} 14.
Ne3 {[%clk 0:02:37]} 14... b4 {[%clk 0:02:45]} 15. O-O {[%clk 0:02:31.3]} 15...
a5 {[%clk 0:02:43.3]} 16. Rfd1 {[%clk 0:02:25]} 16... Ba6 {[%clk 0:02:38.7]} 17.
Bf3 {[%clk 0:02:25]} 17... f6 {[%clk 0:02:17]} 18. Nxd5 {[%clk 0:02:20.1]} 18...
exd5 {[%clk 0:02:04.5]} 19. Bxd5+ {[%clk 0:02:19.8]} 19... Kh8 {[%clk
0:02:02.7]} 20. e6 {[%clk 0:02:12.2]} 20... Bxd4+ {[%clk 0:01:45.8]} 21. cxd4
{[%clk 0:02:11.3]} 21... Rad8 {[%clk 0:01:29.1]} 22. e7 {[%clk 0:02:10.7]} 22...
Qd6 {[%clk 0:01:25]} 23. exd8=Q {[%clk 0:02:05.6]} 23... Rxd8 {[%clk 0:01:24.1]}
24. Bf3 {[%clk 0:01:59.9]} 24... f5 {[%clk 0:01:17]} 25. Rac1 {[%clk 0:01:57.2]}
25... Bb5 {[%clk 0:00:50.1]} 26. Qe3 {[%clk 0:01:56.8]} 26... a4 {[%clk
0:00:39]} 27. d5 {[%clk 0:01:50.1]} 27... Nb6 {[%clk 0:00:23.7]} 28. b3 {[%clk
0:01:38.3]} 28... a3 {[%clk 0:00:19.3]} 29. g3 {[%clk 0:01:33.9]} 29... h6
{[%clk 0:00:15.3]} 30. Qe5 {[%clk 0:01:30.7]} 30... Qd7 {[%clk 0:00:11.2]} 31.
Rc7 {[%clk 0:01:29.5]} 31... Qe8 {[%clk 0:00:08]} 32. Qxg7# {[%clk 0:01:28.8]}
1-0

[Event "*** Titled Tuesday Blitz"]
[Site "Chess.com"]
[Date "2021.02.09"]
[Round "11"]
[White "Taktikmonster"]
[Black "ailime26"]
[Result "1-0"]
[WhiteElo "2281"]
[BlackElo "2120"]
[TimeControl "180+1"]
[EndTime "12:06:08 PST"]
[Termination "Taktikmonster won by resignation"]

1. e4 {[%clk 0:03:00.9]} 1... c5 {[%clk 0:02:58.8]} 2. Nf3 {[%clk 0:03:00.8]}
2... Nc6 {[%clk 0:02:58]} 3. d4 {[%clk 0:03:00.4]} 3... cxd4 {[%clk 0:02:57.7]}
4. Nxd4 {[%clk 0:03:01.3]} 4... Nf6 {[%clk 0:02:57.1]} 5. Nc3 {[%clk 0:03:01.1]}
5... e5 {[%clk 0:02:47.4]} 6. Ndb5 {[%clk 0:02:58.5]} 6... d6 {[%clk 0:02:47.6]}
7. Bg5 {[%clk 0:02:59]} 7... a6 {[%clk 0:02:47.1]} 8. Na3 {[%clk 0:02:59.5]}
8... b5 {[%clk 0:02:46.9]} 9. Bxf6 {[%clk 0:02:59.9]} 9... gxf6 {[%clk
0:02:46.8]} 10. Nd5 {[%clk 0:03:00.5]} 10... f5 {[%clk 0:02:46.7]} 11. g3 {[%clk
0:03:01]} 11... Bg7 {[%clk 0:02:45.8]} 12. Bg2 {[%clk 0:03:01.2]} 12... O-O
{[%clk 0:02:45.7]} 13. O-O {[%clk 0:03:01.3]} 13... Kh8 {[%clk 0:02:44.6]} 14.
exf5 {[%clk 0:02:59.9]} 14... Bxf5 {[%clk 0:02:42.9]} 15. Ne3 {[%clk 0:02:59.8]}
15... Bd7 {[%clk 0:02:40.3]} 16. Qxd6 {[%clk 0:02:59.3]} 16... Qc8 {[%clk
0:02:39.7]} 17. Nd5 {[%clk 0:02:39.9]} 17... Ra7 {[%clk 0:02:31.9]} 18. Nb6
{[%clk 0:02:33.9]} 18... Qc7 {[%clk 0:02:31.3]} 19. Qxc7 {[%clk 0:02:32.9]}
19... Rxc7 {[%clk 0:02:29]} 20. Nxd7 {[%clk 0:02:33.5]} 20... Rxd7 {[%clk
0:02:22.2]} 21. Bxc6 {[%clk 0:02:33.1]} 21... Rc7 {[%clk 0:02:22.4]} 22. Bd5
{[%clk 0:02:22.6]} 22... e4 {[%clk 0:02:00.4]} 23. c3 {[%clk 0:02:17.3]} 23...
b4 {[%clk 0:01:58.1]} 24. Nc4 {[%clk 0:01:59.1]} 24... bxc3 {[%clk 0:01:56.4]}
25. bxc3 {[%clk 0:02:00]} 25... Bxc3 {[%clk 0:01:55.3]} 26. Rac1 {[%clk
0:02:00.3]} 26... Bg7 {[%clk 0:01:55.3]} 27. Bxe4 {[%clk 0:01:59.2]} 27... Rfc8
{[%clk 0:01:52.3]} 28. Bd5 {[%clk 0:01:44.8]} 28... Rc5 {[%clk 0:01:51]} 29.
Bxf7 {[%clk 0:01:13.5]} 29... Bb2 {[%clk 0:01:47.5]} 30. Rb1 {[%clk 0:01:08.8]}
30... Bd4 {[%clk 0:01:45]} 31. Nd6 {[%clk 0:00:46.5]} 31... Rf8 {[%clk
0:01:41.6]} 32. Bb3 {[%clk 0:00:25.5]} 32... Re5 {[%clk 0:01:32.4]} 33. Nf7+
{[%clk 0:00:25.1]} 33... Kg7 {[%clk 0:01:28.7]} 34. Nxe5 {[%clk 0:00:24.9]}
34... Bxe5 {[%clk 0:01:29.5]} 35. Kg2 {[%clk 0:00:25.3]} 35... Bd4 {[%clk
0:01:29.6]} 36. f4 {[%clk 0:00:25.3]} 1-0

[Event "*** Titled Tuesday Blitz"]
[Site "Chess.com"]
[Date "2021.02.09"]
[Round "11"]
[White "Vugar_Manafov"]
[Black "zeitnot2006"]
[Result "1-0"]
[WhiteElo "2656"]
[BlackElo "2525"]
[TimeControl "180+1"]
[EndTime "12:06:17 PST"]
[Termination "Vugar_Manafov won by resignation"]

1. d4 {[%clk 0:03:00.7]} 1... e6 {[%clk 0:02:56.8]} 2. c4 {[%clk 0:03:00.2]}
2... Bb4+ {[%clk 0:02:55.6]} 3. Bd2 {[%clk 0:03:00]} 3... Bxd2+ {[%clk
0:02:55.5]} 4. Qxd2 {[%clk 0:03:00.9]} 4... Nf6 {[%clk 0:02:55.7]} 5. Nc3 {[%clk
0:03:01.4]} 5... d5 {[%clk 0:02:53.5]} 6. e3 {[%clk 0:03:01.3]} 6... O-O {[%clk
0:02:50.9]} 7. Nf3 {[%clk 0:03:00.6]} 7... b6 {[%clk 0:02:49.8]} 8. cxd5 {[%clk
0:03:00.2]} 8... exd5 {[%clk 0:02:46.5]} 9. Bd3 {[%clk 0:03:00.2]} 9... Bb7
{[%clk 0:02:47.1]} 10. O-O {[%clk 0:03:00.1]} 10... c6 {[%clk 0:02:47.8]} 11.
Ne5 {[%clk 0:03:00]} 11... Nbd7 {[%clk 0:02:47.1]} 12. f4 {[%clk 0:03:00.4]}
12... Re8 {[%clk 0:02:46.8]} 13. Rf3 {[%clk 0:02:59.1]} 13... c5 {[%clk
0:02:41.2]} 14. Rh3 {[%clk 0:02:45]} 14... Nxe5 {[%clk 0:02:31.4]} 15. fxe5
{[%clk 0:02:44]} 15... Ne4 {[%clk 0:02:31.5]} 16. Qc2 {[%clk 0:02:21.2]} 16...
f5 {[%clk 0:02:09]} 17. Bxe4 {[%clk 0:02:00.5]} 17... dxe4 {[%clk 0:01:45.6]}
18. Nb5 {[%clk 0:02:00.2]} 18... cxd4 {[%clk 0:01:07.5]} 19. exd4 {[%clk
0:02:01.1]} 19... Qd5 {[%clk 0:00:55.2]} 20. Qb3 {[%clk 0:01:58.1]} 20... Red8
{[%clk 0:00:27.3]} 21. Nd6 {[%clk 0:01:50.8]} 21... Rxd6 {[%clk 0:00:22.6]} 22.
exd6 {[%clk 0:01:50.2]} 22... Rd8 {[%clk 0:00:20.6]} 23. Rc1 {[%clk 0:01:44.9]}
23... Qxb3 {[%clk 0:00:16.1]} 24. axb3 {[%clk 0:01:45.8]} 24... Rxd6 {[%clk
0:00:16.3]} 25. Rc7 {[%clk 0:01:45.1]} 25... Bd5 {[%clk 0:00:11.5]} 26. Rg3
{[%clk 0:01:44.4]} 26... g6 {[%clk 0:00:06]} 27. Rh3 {[%clk 0:01:44.6]} 27...
Bf7 {[%clk 0:00:05.3]} 28. Rhc3 {[%clk 0:01:42]} 28... Rxd4 {[%clk 0:00:05.2]}
29. Rxa7 {[%clk 0:01:42.3]} 29... f4 {[%clk 0:00:04]} 30. Rc8+ {[%clk
0:01:42.6]} 30... Kg7 {[%clk 0:00:02.7]} 31. Rcc7 {[%clk 0:01:43.2]} 31... Rd1+
{[%clk 0:00:03.1]} 32. Kf2 {[%clk 0:01:43]} 32... e3+ {[%clk 0:00:03.7]} 33. Ke2
{[%clk 0:01:42.5]} 33... Rd2+ {[%clk 0:00:04.2]} 34. Ke1 {[%clk 0:01:42.9]}
34... Rxb2 {[%clk 0:00:04.1]} 35. Rxf7+ {[%clk 0:01:43.3]} 35... Kh6 {[%clk
0:00:04.9]} 36. Rxf4 {[%clk 0:01:44.2]} 36... Rxb3 {[%clk 0:00:04.8]} 37. Rf3
{[%clk 0:01:44.7]} 37... Kg5 {[%clk 0:00:05.1]} 38. Re7 {[%clk 0:01:44.5]} 38...
Rb1+ {[%clk 0:00:04.8]} 39. Ke2 {[%clk 0:01:45]} 39... Rb2+ {[%clk 0:00:05.7]}
40. Kf1 {[%clk 0:01:44.7]} 40... Rb1+ {[%clk 0:00:05.8]} 41. Ke2 {[%clk
0:01:45.3]} 41... Rb2+ {[%clk 0:00:06.6]} 42. Kxe3 {[%clk 0:01:45.9]} 42... Rxg2
{[%clk 0:00:06.3]} 43. Rg3+ {[%clk 0:01:46.5]} 1-0

[Event "*** Titled Tuesday Blitz"]
[Site "Chess.com"]
[Date "2021.02.09"]
[Round "11"]
[White "GregShahade"]
[Black "serhanberat_ozdemir"]
[Result "0-1"]
[WhiteElo "2680"]
[BlackElo "2524"]
[TimeControl "180+1"]
[EndTime "12:06:20 PST"]
[Termination "serhanberat_ozdemir won by resignation"]

1. e4 {[%clk 0:03:00.9]} 1... c5 {[%clk 0:02:59.6]} 2. Nf3 {[%clk 0:03:01]} 2...
e6 {[%clk 0:03:00]} 3. d4 {[%clk 0:03:01.5]} 3... cxd4 {[%clk 0:03:00.9]} 4.
Nxd4 {[%clk 0:03:01.9]} 4... a6 {[%clk 0:03:01.7]} 5. Nc3 {[%clk 0:03:02.3]}
5... b5 {[%clk 0:03:02.2]} 6. Bd3 {[%clk 0:03:00.7]} 6... Qb6 {[%clk 0:03:01.7]}
7. Nf3 {[%clk 0:03:00.8]} 7... Qc7 {[%clk 0:03:01.6]} 8. O-O {[%clk 0:03:01]}
8... Bb7 {[%clk 0:03:02.1]} 9. Re1 {[%clk 0:02:57.2]} 9... Be7 {[%clk
0:03:02.1]} 10. e5 {[%clk 0:02:57.2]} 10... f5 {[%clk 0:03:02.2]} 11. Nd4 {[%clk
0:02:57.5]} 11... g6 {[%clk 0:02:57.1]} 12. Bf4 {[%clk 0:02:52.8]} 12... Nc6
{[%clk 0:02:43.4]} 13. Nxf5 {[%clk 0:02:42.8]} 13... gxf5 {[%clk 0:02:25.6]} 14.
Qh5+ {[%clk 0:02:39.6]} 14... Kd8 {[%clk 0:02:26.2]} 15. Bxf5 {[%clk 0:02:34.4]}
15... Kc8 {[%clk 0:01:30.4]} 16. Bh3 {[%clk 0:01:58]} 16... Kb8 {[%clk
0:01:21.1]} 17. Qf7 {[%clk 0:01:51.7]} 17... Bd8 {[%clk 0:01:09.1]} 18. Qg7
{[%clk 0:01:43]} 18... Nge7 {[%clk 0:01:07.5]} 19. Qxh8 {[%clk 0:01:41.1]} 19...
Ng6 {[%clk 0:01:05.2]} 20. Qxh7 {[%clk 0:01:21.9]} 20... Nxf4 {[%clk 0:01:05.7]}
21. Qg7 {[%clk 0:00:49.5]} 21... Nxh3+ {[%clk 0:01:03.4]} 22. gxh3 {[%clk
0:00:50.4]} 22... Nd4 {[%clk 0:01:00.4]} 23. Red1 {[%clk 0:00:35]} 23... Qc6
{[%clk 0:00:59.4]} 24. f3 {[%clk 0:00:25.6]} 24... Bb6 {[%clk 0:00:54.2]} 0-1

[Event "*** Titled Tuesday Blitz"]
[Site "Chess.com"]
[Date "2021.02.09"]
[Round "11"]
[White "ega2006"]
[Black "ErikBlomqvist"]
[Result "1/2-1/2"]
[WhiteElo "2418"]
[BlackElo "2505"]
[TimeControl "180+1"]
[EndTime "12:06:35 PST"]
[Termination "Game drawn by agreement"]

1. e4 {[%clk 0:03:00.9]} 1... c5 {[%clk 0:02:58.8]} 2. Nf3 {[%clk 0:03:00.8]}
2... e6 {[%clk 0:02:59.3]} 3. Nc3 {[%clk 0:02:59.8]} 3... Nc6 {[%clk 0:02:59.2]}
4. Bb5 {[%clk 0:02:59.2]} 4... Nd4 {[%clk 0:02:59.2]} 5. O-O {[%clk 0:02:58.9]}
5... Ne7 {[%clk 0:02:53]} 6. Nxd4 {[%clk 0:02:57.3]} 6... cxd4 {[%clk
0:02:52.8]} 7. Ne2 {[%clk 0:02:57.9]} 7... a6 {[%clk 0:02:49.6]} 8. Bd3 {[%clk
0:02:57.7]} 8... Nc6 {[%clk 0:02:49.5]} 9. c3 {[%clk 0:02:58.2]} 9... Bc5 {[%clk
0:02:44.3]} 10. b4 {[%clk 0:02:58.2]} 10... Ba7 {[%clk 0:02:44.5]} 11. a4 {[%clk
0:02:57.3]} 11... O-O {[%clk 0:02:39.9]} 12. b5 {[%clk 0:02:56.3]} 12... Ne5
{[%clk 0:02:39.2]} 13. Qc2 {[%clk 0:02:51.1]} 13... dxc3 {[%clk 0:02:21.3]} 14.
Nxc3 {[%clk 0:02:47.1]} 14... Nxd3 {[%clk 0:02:02.3]} 15. Qxd3 {[%clk 0:02:48]}
15... Bc5 {[%clk 0:01:57]} 16. Ba3 {[%clk 0:02:44.4]} 16... Bxa3 {[%clk
0:01:46.7]} 17. Rxa3 {[%clk 0:02:45.3]} 17... Qe7 {[%clk 0:01:46.7]} 18. Rb3
{[%clk 0:02:41]} 18... b6 {[%clk 0:01:32.3]} 19. Qe3 {[%clk 0:02:36]} 19... axb5
{[%clk 0:01:29.3]} 20. axb5 {[%clk 0:02:27.6]} 20... Qd6 {[%clk 0:01:25.5]} 21.
d4 {[%clk 0:02:17.6]} 21... Bb7 {[%clk 0:01:23.8]} 22. f3 {[%clk 0:01:58.3]}
22... Rfc8 {[%clk 0:01:23.4]} 23. Ne2 {[%clk 0:01:49]} 23... Ra2 {[%clk
0:01:08.3]} 24. Rc3 {[%clk 0:01:30.4]} 24... Rxc3 {[%clk 0:00:53]} 25. Nxc3
{[%clk 0:01:31.3]} 25... Ra3 {[%clk 0:00:53.4]} 26. Rc1 {[%clk 0:01:30.6]} 26...
h6 {[%clk 0:00:47.4]} 27. Qd2 {[%clk 0:01:07.7]} 27... Qb4 {[%clk 0:00:27]} 28.
Nb1 {[%clk 0:01:06.8]} 28... Qxd2 {[%clk 0:00:26.9]} 29. Nxd2 {[%clk 0:01:06.8]}
29... Rd3 {[%clk 0:00:27.6]} 30. Rc7 {[%clk 0:01:05.9]} 30... Rxd2 {[%clk
0:00:26.9]} 31. Rxb7 {[%clk 0:01:06]} 31... Rxd4 {[%clk 0:00:27.2]} 32. Rxb6
{[%clk 0:01:06.3]} 32... Rd2 {[%clk 0:00:24.1]} 33. Rb8+ {[%clk 0:01:03.8]}
33... Kh7 {[%clk 0:00:23.8]} 34. b6 {[%clk 0:01:00.3]} 34... Rb2 {[%clk
0:00:20.3]} 35. Rd8 {[%clk 0:00:55.5]} 1/2-1/2

[Event "*** Titled Tuesday Blitz"]
[Site "Chess.com"]
[Date "2021.02.09"]
[Round "11"]
[White "CoachHakia"]
[Black "szachuspl"]
[Result "1/2-1/2"]
[WhiteElo "2165"]
[BlackElo "2470"]
[TimeControl "180+1"]
[EndTime "12:06:41 PST"]
[Termination "Game drawn by repetition"]

1. d4 {[%clk 0:03:00.9]} 1... d5 {[%clk 0:02:37.5]} 2. Nf3 {[%clk 0:02:57.1]}
2... Nf6 {[%clk 0:02:36.9]} 3. e3 {[%clk 0:02:57.1]} 3... Bg4 {[%clk 0:02:35.1]}
4. Be2 {[%clk 0:02:57.2]} 4... e6 {[%clk 0:02:34.1]} 5. Nbd2 {[%clk 0:02:57.7]}
5... c5 {[%clk 0:02:27.7]} 6. c3 {[%clk 0:02:57.5]} 6... Nc6 {[%clk 0:02:27.4]}
7. O-O {[%clk 0:02:57.7]} 7... Bd6 {[%clk 0:02:27.2]} 8. Re1 {[%clk 0:02:54.9]}
8... O-O {[%clk 0:02:26.2]} 9. h3 {[%clk 0:02:07.4]} 9... Bh5 {[%clk 0:02:25.5]}
10. Nh2 {[%clk 0:02:04.1]} 10... Bg6 {[%clk 0:02:16.8]} 11. f4 {[%clk
0:02:01.1]} 11... cxd4 {[%clk 0:02:12.3]} 12. cxd4 {[%clk 0:02:00.7]} 12... Qb6
{[%clk 0:02:12.2]} 13. a3 {[%clk 0:01:57.9]} 13... Ne4 {[%clk 0:02:09]} 14. Nxe4
{[%clk 0:01:58]} 14... Bxe4 {[%clk 0:02:08.2]} 15. Bd3 {[%clk 0:01:58.2]} 15...
f6 {[%clk 0:02:04.6]} 16. Bxe4 {[%clk 0:01:57.6]} 16... dxe4 {[%clk 0:02:04.7]}
17. Bd2 {[%clk 0:01:57.1]} 17... Rfd8 {[%clk 0:02:01.9]} 18. Qc2 {[%clk
0:01:56.5]} 18... f5 {[%clk 0:01:59.1]} 19. Bc3 {[%clk 0:01:56.4]} 19... Rac8
{[%clk 0:01:58.6]} 20. Qe2 {[%clk 0:01:54.8]} 20... Ne7 {[%clk 0:01:57.2]} 21.
g4 {[%clk 0:01:54.8]} 21... Nd5 {[%clk 0:01:55.7]} 22. gxf5 {[%clk 0:01:53.8]}
22... exf5 {[%clk 0:01:54]} 23. Rac1 {[%clk 0:01:53.7]} 23... Nxc3 {[%clk
0:01:52.9]} 24. Rxc3 {[%clk 0:01:51.2]} 24... Rxc3 {[%clk 0:01:52.1]} 25. bxc3
{[%clk 0:01:52.1]} 25... Bxa3 {[%clk 0:01:52.7]} 26. Qc4+ {[%clk 0:01:50.5]}
26... Kh8 {[%clk 0:01:51]} 27. Qf7 {[%clk 0:01:47.9]} 27... Rf8 {[%clk
0:01:42.2]} 28. Qd7 {[%clk 0:01:43.6]} 28... Bb2 {[%clk 0:01:33.9]} 29. c4
{[%clk 0:01:42.6]} 29... Qc6 {[%clk 0:01:27.6]} 30. Qe7 {[%clk 0:01:36.5]} 30...
Qf6 {[%clk 0:01:26.5]} 31. Qxf6 {[%clk 0:01:31.9]} 31... Rxf6 {[%clk 0:01:25.9]}
32. Rb1 {[%clk 0:01:32.1]} 32... Rb6 {[%clk 0:01:25.5]} 33. c5 {[%clk
0:01:31.1]} 33... Rb4 {[%clk 0:01:16.4]} 34. d5 {[%clk 0:01:26.5]} 34... a5
{[%clk 0:01:11.5]} 35. d6 {[%clk 0:01:24]} 35... Bf6 {[%clk 0:01:11.4]} 36. Rc1
{[%clk 0:01:17.8]} 36... a4 {[%clk 0:01:10.1]} 37. c6 {[%clk 0:01:17.9]} 37...
bxc6 {[%clk 0:01:09.5]} 38. Rxc6 {[%clk 0:01:18.8]} 38... h6 {[%clk 0:01:09.7]}
39. Ra6 {[%clk 0:01:18.5]} 39... Kg8 {[%clk 0:01:05.9]} 40. d7 {[%clk
0:01:11.8]} 40... Kf7 {[%clk 0:01:02.6]} 41. Rxf6+ {[%clk 0:01:10.9]} 41... Ke7
{[%clk 0:01:01.2]} 42. Rxf5 {[%clk 0:01:06.5]} 42... Kxd7 {[%clk 0:00:58.9]} 43.
Ra5 {[%clk 0:01:06.6]} 43... Kc6 {[%clk 0:00:58.8]} 44. Ng4 {[%clk 0:01:05.2]}
44... Kb6 {[%clk 0:00:58.8]} 45. Ra8 {[%clk 0:01:05.2]} 45... Kb7 {[%clk
0:00:59.1]} 46. Ra5 {[%clk 0:01:01.2]} 46... Kb6 {[%clk 0:00:59.4]} 47. Ra8
{[%clk 0:00:59.6]} 47... Kb7 {[%clk 0:00:59.4]} 48. Ra5 {[%clk 0:00:53]} 48...
Kb6 {[%clk 0:00:58.5]} 1/2-1/2

[Event "*** Titled Tuesday Blitz"]
[Site "Chess.com"]
[Date "2021.02.09"]
[Round "11"]
[White "Pantata007"]
[Black "JiiHart"]
[Result "1-0"]
[WhiteElo "2225"]
[BlackElo "2097"]
[TimeControl "180+1"]
[EndTime "12:06:44 PST"]
[Termination "Pantata007 won by resignation"]

1. d4 {[%clk 0:03:00.9]} 1... d5 {[%clk 0:02:58.4]} 2. c4 {[%clk 0:02:59.5]}
2... e6 {[%clk 0:02:58.6]} 3. Nc3 {[%clk 0:02:59.2]} 3... Be7 {[%clk 0:02:58.8]}
4. cxd5 {[%clk 0:02:58.7]} 4... exd5 {[%clk 0:02:58.5]} 5. Bf4 {[%clk
0:02:59.3]} 5... Nf6 {[%clk 0:02:57.1]} 6. e3 {[%clk 0:02:59.5]} 6... O-O {[%clk
0:02:56.3]} 7. Bd3 {[%clk 0:02:58.6]} 7... b6 {[%clk 0:02:50.6]} 8. Nf3 {[%clk
0:02:54.6]} 8... Bb7 {[%clk 0:02:49.4]} 9. O-O {[%clk 0:02:54.8]} 9... Ne4
{[%clk 0:02:42.6]} 10. Qc2 {[%clk 0:02:49.6]} 10... f5 {[%clk 0:02:34.4]} 11.
Ne5 {[%clk 0:02:49.4]} 11... Nd7 {[%clk 0:02:12.8]} 12. f3 {[%clk 0:02:42.3]}
12... Nd6 {[%clk 0:01:56.3]} 13. Rae1 {[%clk 0:02:16.8]} 13... g6 {[%clk
0:01:34.9]} 14. Bh6 {[%clk 0:02:16.2]} 14... Re8 {[%clk 0:01:29.2]} 15. e4
{[%clk 0:02:16.3]} 15... dxe4 {[%clk 0:00:46.7]} 16. fxe4 {[%clk 0:02:17.2]}
16... Nxe5 {[%clk 0:00:33.2]} 17. dxe5 {[%clk 0:02:15.2]} 17... Nxe4 {[%clk
0:00:29.3]} 18. Nxe4 {[%clk 0:02:02.4]} 18... Bxe4 {[%clk 0:00:18.2]} 19. Bxe4
{[%clk 0:02:00.3]} 19... Qd4+ {[%clk 0:00:16.8]} 20. Kh1 {[%clk 0:01:32.1]}
20... fxe4 {[%clk 0:00:16.7]} 21. Qb3+ {[%clk 0:01:02.8]} 21... Kh8 {[%clk
0:00:15.4]} 22. Qf7 {[%clk 0:00:39.6]} 22... Qxe5 {[%clk 0:00:15.1]} 23. Rxe4
{[%clk 0:00:39.7]} 23... Rf8 {[%clk 0:00:13]} 24. Rxe5 {[%clk 0:00:37.2]} 24...
Rxf7 {[%clk 0:00:13.4]} 25. Rxf7 {[%clk 0:00:37.7]} 25... Bd6 {[%clk 0:00:13.6]}
26. Re1 {[%clk 0:00:34.4]} 1-0

[Event "*** Titled Tuesday Blitz"]
[Site "Chess.com"]
[Date "2021.02.09"]
[Round "11"]
[White "CalinGheorghiu"]
[Black "MergenKakabaev"]
[Result "1-0"]
[WhiteElo "2316"]
[BlackElo "2378"]
[TimeControl "180+1"]
[EndTime "12:06:46 PST"]
[Termination "CalinGheorghiu won by checkmate"]

1. e4 {[%clk 0:03:00.9]} 1... e5 {[%clk 0:02:59.4]} 2. Nc3 {[%clk 0:02:57.8]}
2... Nf6 {[%clk 0:02:55.5]} 3. f4 {[%clk 0:02:57.5]} 3... exf4 {[%clk
0:02:54.7]} 4. d4 {[%clk 0:02:57.3]} 4... d5 {[%clk 0:02:52.9]} 5. e5 {[%clk
0:02:56.7]} 5... Ne4 {[%clk 0:02:53]} 6. Nf3 {[%clk 0:02:54.5]} 6... Bb4 {[%clk
0:02:52]} 7. Bd2 {[%clk 0:02:48.3]} 7... Bxc3 {[%clk 0:02:52]} 8. bxc3 {[%clk
0:02:48.1]} 8... g5 {[%clk 0:02:50.4]} 9. h3 {[%clk 0:02:46.7]} 9... Bf5 {[%clk
0:02:45.4]} 10. Bd3 {[%clk 0:02:46]} 10... c5 {[%clk 0:02:43.1]} 11. dxc5 {[%clk
0:02:41.8]} 11... Nc6 {[%clk 0:02:41.5]} 12. O-O {[%clk 0:02:41.5]} 12... Qa5
{[%clk 0:02:39]} 13. Bxe4 {[%clk 0:02:31.7]} 13... Qxc5+ {[%clk 0:02:37.9]} 14.
Kh2 {[%clk 0:02:27]} 14... dxe4 {[%clk 0:02:36.4]} 15. Nxg5 {[%clk 0:02:27.6]}
15... e3 {[%clk 0:02:32.2]} 16. Rxf4 {[%clk 0:02:18]} 16... Qxe5 {[%clk
0:02:29.8]} 17. Bxe3 {[%clk 0:02:17.9]} 17... Bg6 {[%clk 0:02:04.9]} 18. Qd2
{[%clk 0:01:01]} 18... Rd8 {[%clk 0:02:01]} 19. Qf2 {[%clk 0:01:00.6]} 19... Kd7
{[%clk 0:01:35.9]} 20. Nf3 {[%clk 0:00:52.8]} 20... Qd6 {[%clk 0:01:27.1]} 21.
Nd4 {[%clk 0:00:47.6]} 21... Nxd4 {[%clk 0:01:24.5]} 22. Bxd4 {[%clk 0:00:46.7]}
22... Rhe8 {[%clk 0:01:19.3]} 23. Bc5 {[%clk 0:00:42.5]} 23... Qe5 {[%clk
0:01:15.9]} 24. Bxa7 {[%clk 0:00:23.5]} 24... Ra8 {[%clk 0:01:09.9]} 25. Rd1+
{[%clk 0:00:21.4]} 25... Kc8 {[%clk 0:01:08.4]} 26. Qc5+ {[%clk 0:00:13.4]}
26... Qxc5 {[%clk 0:01:06.3]} 27. Bxc5 {[%clk 0:00:14.3]} 27... Rxa2 {[%clk
0:01:06.3]} 28. Bb6 {[%clk 0:00:14.9]} 28... Rb2 {[%clk 0:00:49.1]} 29. Rc4+
{[%clk 0:00:12.5]} 29... Kb8 {[%clk 0:00:47]} 30. Bc7+ {[%clk 0:00:13.1]} 30...
Kc8 {[%clk 0:00:43]} 31. Bf4# {[%clk 0:00:12.5]} 1-0